fUSD/lending_fUSD_20250504
["ID","MTS","AMOUNT","RATE_DAILY","PERIOD"]
[359823313,1746359466439,-508.14953659,0.00019873,2]
[359823314,1746359466448,-500.0,0.00019873,2]
[359823315,1746359466457,-500.0,0.00019873,2]
[359823316,1746359466467,-500.30362522,0.00019873,2]
[359823317,1746359466476,-500.0,0.00019873,2]
[359823318,1746359466485,-162.74641742,0.00019873,2]
[359823319,1746359466494,-500.21059738,0.00019873,2]
[359823320,1746359466503,-629.19071202,0.00019873,2]
[359823321,1746359466512,-344.6693912,0.00019873,2]
[359823322,1746359466521,-500.0,0.00019873,2]
[359823323,1746359466530,-500.0,0.00019873,2]
[359823324,1746359466539,-500.0,0.00019873,2]
[359823325,1746359466548,-153.93340078,0.00019873,2]
[359823326,1746359466557,-500.0,0.00019873,2]
[359823327,1746359466565,-500.0,0.00019873,2]
[359823328,1746359466574,-500.0,0.00019873,2]
[359823329,1746359466584,-12500.0,0.00019874,2]
[359823330,1746359466593,-151.0,0.00019874,2]
[359823331,1746359466602,-151.0,0.00019874,2]
[359823332,1746359466611,-214.614548,0.00019874,2]
[359823333,1746359466620,-151.0,0.00019874,2]
[359823334,1746359466629,-151.0,0.00019874,2]
[359823335,1746359466638,-151.0,0.00019874,2]
[359823336,1746359466648,-151.0,0.00019874,2]
[359823337,1746359466657,-151.0,0.00019874,2]
[359823338,1746359466666,-151.0,0.00019874,2]
[359823339,1746359466675,-161.252723,0.00019874,2]
[359823340,1746359466684,-172.01774,0.00019874,2]
[359823341,1746359466694,-151.0,0.00019874,2]
[359823342,1746359466704,-151.0,0.00019874,2]
[359823343,1746359466714,-322.854706,0.00019874,2]
[359823344,1746359466723,-151.0,0.00019874,2]
[359823345,1746359466732,-322.854706,0.00019874,2]
[359823346,1746359466741,-151.0,0.00019874,2]
[359823347,1746359466751,-151.0,0.00019874,2]
[359823348,1746359466760,-151.0,0.00019874,2]
[359823349,1746359466769,-151.0,0.00019882,2]
[359823350,1746359466779,-151.0,0.00019882,2]
[359823351,1746359466788,-151.0,0.00019882,2]
[359823352,1746359466798,-151.0,0.00019882,2]
[359823353,1746359466808,-248.771419,0.00019882,2]
[359823354,1746359466818,-151.0,0.00019882,2]
[359823355,1746359466827,-151.0,0.00019882,2]
[359823356,1746359466837,-248.771419,0.00019882,2]
[359823357,1746359466847,-151.0,0.00019882,2]
[359823358,1746359466856,-151.0,0.00019882,2]
[359823359,1746359466865,-232.128104,0.00019882,2]
[359823360,1746359466874,-151.0,0.00019882,2]
[359823361,1746359466884,-151.0,0.00019882,2]
[359823362,1746359466894,-151.0,0.00019882,2]
[359823363,1746359466903,-255.288366,0.00019882,2]
[359823364,1746359466912,-151.0,0.00019882,2]
[359823365,1746359466921,-153.687788,0.00019882,2]
[359823366,1746359466931,-151.0,0.00019882,2]
[359823367,1746359466941,-153.687788,0.00019882,2]
[359823368,1746359466950,-151.0,0.00019882,2]
[359823369,1746359466960,-12500.0,0.00019882,2]
[359823370,1746359466969,-12500.0,0.00019882,2]
[359823371,1746359466979,-15695.90370957,0.00019884,2]
[359823372,1746359466988,-831.78,0.00019889,2]
[359823373,1746359466997,-500.0,0.00019889,2]
[359823374,1746359467008,-500.0,0.00019889,2]
[359823375,1746359467018,-500.0,0.00019889,2]
[359823376,1746359467028,-1806.5,0.00019889,2]
[359823377,1746359467038,-450.0,0.0001989,2]
[359823378,1746359467048,-450.0,0.0001989,2]
[359823379,1746359467060,-450.0,0.0001989,2]
[359823380,1746359467069,-450.0,0.0001989,2]
[359823381,1746359467079,-450.0,0.0001989,2]
[359823382,1746359467087,-430.06089543,0.0001989,2]
[359823383,1746359467097,-450.0,0.0001989,2]
[359823384,1746359467107,-450.0,0.0001989,2]
[359823385,1746359467117,-884.01,0.0001989,2]
[359823386,1746359467126,-450.0,0.0001989,2]
[359823387,1746359467136,-450.0,0.0001989,2]
[359823388,1746359467145,-450.0,0.0001989,2]
[359823389,1746359467155,-450.0,0.0001989,2]
[359823390,1746359467164,-450.0,0.0001989,2]
[359823391,1746359467173,-450.0,0.0001989,2]
[359823392,1746359467183,-564.14,0.0001989,2]
[359823393,1746359467192,-450.0,0.0001989,2]
[359823394,1746359467201,-450.0,0.0001989,2]
[359823395,1746359467211,-450.0,0.0001989,2]
[359823396,1746359467220,-450.0,0.0001989,2]
[359823397,1746359467229,-450.0,0.0001989,2]
[359823398,1746359467238,-198.86,0.0001989,2]
[359823399,1746359467247,-450.0,0.0001989,2]
[359823400,1746359467256,-485.4,0.0001989,2]
[359823401,1746359467266,-657.67,0.0001989,2]
[359823402,1746359467278,-587.24,0.0001989,2]
[359823403,1746359467287,-542.57,0.0001989,2]
[359823404,1746359467296,-192.76,0.0001989,2]
[359823405,1746359467306,-450.0,0.0001989,2]
[359823406,1746359467315,-519.67,0.0001989,2]
[359823407,1746359467325,-450.0,0.0001989,2]
[359823408,1746359467335,-450.0,0.0001989,2]
[359823409,1746359467345,-450.0,0.0001989,2]
[359823410,1746359467355,-450.0,0.0001989,2]
[359823411,1746359467365,-450.0,0.0001989,2]
[359823412,1746359467378,-450.0,0.0001989,2]
[359823413,1746359467388,-450.0,0.0001989,2]
[359823414,1746359467397,-164.49,0.0001989,2]
[359823415,1746359467407,-450.0,0.0001989,2]
[359823416,1746359467417,-450.0,0.0001989,2]
[359823417,1746359467427,-450.0,0.0001989,2]
[359823418,1746359467437,-1239.1,0.0001989,2]
[359823419,1746359467447,-624.17,0.0001989,2]
[359823420,1746359467457,-795.62,0.0001989,2]
[359823421,1746359467467,-1221.77,0.0001989,2]
[359823422,1746359467476,-450.0,0.0001989,2]
[359823423,1746359467485,-450.0,0.0001989,2]
[359823424,1746359467495,-404.28,0.0001989,2]
[359823425,1746359467505,-151.0,0.0001989,2]
[359823426,1746359467514,-151.0,0.0001989,2]
[359823427,1746359467523,-151.0,0.0001989,2]
[359823428,1746359467532,-151.0,0.0001989,2]
[359823429,1746359467542,-154.836575,0.0001989,2]
[359823430,1746359467552,-3138.38,0.0001989,2]
[359823431,1746359467561,-450.0,0.0001989,2]
[359823432,1746359467571,-151.0,0.0001989,2]
[359823433,1746359467582,-501.98,0.0001989,2]
[359823434,1746359467591,-450.0,0.0001989,2]
[359823435,1746359467601,-1070.11,0.0001989,2]
[359823436,1746359467610,-450.0,0.0001989,2]
[359823437,1746359467620,-356.62,0.0001989,2]
[359823438,1746359467629,-151.0,0.0001989,2]
[359823439,1746359467639,-151.0,0.0001989,2]
[359823440,1746359467649,-450.0,0.0001989,2]
[359823441,1746359467658,-435.794612,0.0001989,2]
[359823442,1746359467668,-183.6,0.0001989,2]
[359823443,1746359467678,-1073.06,0.0001989,2]
[359823444,1746359467688,-435.794612,0.0001989,2]
[359823445,1746359467697,-500.63,0.0001989,2]
[359823446,1746359467707,-450.0,0.0001989,2]
[359823447,1746359467716,-450.0,0.0001989,2]
[359823448,1746359467726,-450.0,0.0001989,2]
[359823449,1746359467735,-857.72,0.0001989,2]
[359823450,1746359467745,-450.0,0.0001989,2]
[359823451,1746359467754,-450.0,0.0001989,2]
[359823452,1746359467763,-2941.44,0.0001989,2]
[359823453,1746359467774,-408.31623474,0.0001989,2]
[359823454,1746359468073,-21.61376526,0.0001989,2]
[359823455,1746359468083,-232.75428923,0.0001989,2]
[359823456,1746359468095,-929.99571077,0.0001989,2]
[359823457,1746359468104,-450.0,0.0001989,2]
[359823458,1746359468114,-562.76,0.0001989,2]
[359823459,1746359468124,-1159.98,0.0001989,2]
[359823460,1746359468135,-450.0,0.0001989,2]
[359823461,1746359468144,-450.0,0.0001989,2]
[359823462,1746359468156,-450.0,0.0001989,2]
[359823463,1746359468166,-450.0,0.0001989,2]
[359823464,1746359468175,-450.0,0.0001989,2]
[359823465,1746359468185,-584.24,0.0001989,2]
[359823466,1746359468194,-450.0,0.0001989,2]
[359823467,1746359468204,-765.13,0.0001989,2]
[359823468,1746359468214,-171.15706883,0.0001989,2]
[359823469,1746359468224,-398.39,0.0001989,2]
[359823470,1746359468233,-533.18,0.0001989,2]
[359823471,1746359468243,-450.0,0.0001989,2]
[359823472,1746359468252,-450.0,0.0001989,2]
[359823473,1746359468261,-450.0,0.0001989,2]
[359823474,1746359468270,-450.0,0.0001989,2]
[359823475,1746359468280,-3050.62,0.0001989,2]
[359823476,1746359468291,-450.0,0.0001989,2]
[359823477,1746359468302,-421.27,0.0001989,2]
[359823478,1746359468313,-683.7,0.0001989,2]
[359823479,1746359468325,-450.0,0.0001989,2]
[359823480,1746359468338,-450.0,0.0001989,2]
[359823481,1746359468348,-603.46,0.0001989,2]
[359823482,1746359468358,-462.82,0.0001989,2]
[359823483,1746359468370,-288.62,0.0001989,2]
[359823484,1746359468379,-2117.72,0.0001989,2]
[359823485,1746359468389,-450.0,0.0001989,2]
[359823486,1746359468398,-450.0,0.0001989,2]
[359823487,1746359468407,-625.72,0.0001989,2]
[359823488,1746359468419,-1742.76,0.0001989,2]
[359823489,1746359468430,-3548.84,0.0001989,2]
[359823490,1746359468442,-211.97,0.0001989,2]
[359823491,1746359468453,-450.0,0.0001989,2]
[359823492,1746359468463,-450.0,0.0001989,2]
[359823493,1746359468472,-573.03,0.0001989,2]
[359823494,1746359468482,-588.79,0.0001989,2]
[359823495,1746359468491,-597.18,0.0001989,2]
[359823496,1746359468501,-450.0,0.0001989,2]
[359823497,1746359468511,-515.66892036,0.0001989,2]
[359823498,1746359468520,-1790.88,0.0001989,2]
[359823499,1746359468530,-573.15,0.0001989,2]
[359823500,1746359468539,-24342.6451152,0.0001989,2]
[359823501,1746359468555,-1469.52906931,0.0001989,2]
[359823502,1746359468567,-1027.8865036,0.0001989,2]
[359823503,1746359468590,-450.0,0.00019726,2]
[359823504,1746359468599,-550.0,0.0001989,2]
[359823505,1746359468659,194.38,0.00018764,2]
[359823506,1746359468867,-450.0,0.00019726,2]
[359823507,1746359468877,-450.0,0.00019726,2]
[359823508,1746359468887,-450.0,0.00019753,2]
[359823509,1746359468897,-482.32,0.00019753,2]
[359823510,1746359468906,-450.0,0.00019753,2]
[359823511,1746359468916,-450.0,0.0001978,2]
[359823512,1746359468926,-450.0,0.0001978,2]
[359823513,1746359468937,-450.0,0.00019808,2]
[359823514,1746359468946,-450.0,0.00019808,2]
[359823515,1746359468957,-450.0,0.00019835,2]
[359823516,1746359468968,-450.0,0.00019863,2]
[359823517,1746359468978,-151.0,0.00019863,2]
[359823518,1746359468988,-7108.78931189,0.0001989,2]
[359823519,1746359468998,-841.66,0.0001989,2]
[359823520,1746359469008,-300.12,0.0001989,2]
[359823521,1746359469018,-450.0,0.0001989,2]
[359823522,1746359469028,-968.24,0.0001989,2]
[359823523,1746359469039,-450.0,0.0001989,2]
[359823524,1746359469049,-1855.43,0.0001989,2]
[359823525,1746359469060,-462.5,0.0001989,2]
[359823526,1746359469070,-390.05651311,0.0001989,2]
[359823527,1746359469080,-8386.62,0.0001989,2]
[359823528,1746359469089,-450.0,0.0001989,2]
[359823529,1746359469099,-700.48,0.0001989,2]
[359823530,1746359469109,-450.0,0.0001989,2]
[359823531,1746359469119,-5710.89,0.0001989,2]
[359823532,1746359469285,-450.0,0.0001989,2]
[359823533,1746359469294,-661.6,0.0001989,2]
[359823534,1746359469304,-2167.82,0.0001989,2]
[359823535,1746359469314,-450.0,0.0001989,2]
[359823536,1746359469324,-494.48,0.0001989,2]
[359823537,1746359469334,-52939.37,0.0001989,2]
[359823538,1746359469343,-319.54,0.0001989,2]
[359823539,1746359469352,-500.0,0.0001989,2]
[359823540,1746359469362,-12500.0,0.00019891,2]
[359823541,1746359469375,-12500.0,0.00019891,2]
[359823542,1746359469385,-423.05,0.00019899,2]
[359823543,1746359469394,-831.78,0.00019899,2]
[359823544,1746359469403,-500.0,0.00019899,2]
[359823545,1746359469413,-12500.0,0.000199,2]
[359823546,1746359469422,-448.5345,0.000199,2]
[359823547,1746359469431,-523.6163,0.000199,2]
[359823548,1746359469441,-154.36871837,0.000199,2]
[359823549,1746359469452,-12500.0,0.000199,2]
[359823550,1746359469461,-169.66584873,0.000199,2]
[359823551,1746359469473,-151.0,0.000199,2]
[359823552,1746359469482,-151.0,0.000199,2]
[359823553,1746359469491,-151.0,0.000199,2]
[359823554,1746359469500,-153.410582,0.000199,2]
[359823555,1746359469509,-151.0,0.000199,2]
[359823556,1746359469518,-151.0,0.000199,2]
[359823557,1746359469528,-223.63059698,0.000199,2]
[359823558,1746359469537,-1000.0,0.000199,2]
[359823559,1746359469546,-3333.53473593,0.000199,2]
[359823560,1746359469555,-753.18764554,0.000199,2]
[359823561,1746359469564,-1713.20562814,0.000199,2]
[359823562,1746359469572,-10311.39287349,0.000199,2]
[359823563,1746359469582,-2185.45853371,0.000199,2]
[359823564,1746359469591,-205.57268741,0.000199,3]
[359823565,1746359469599,-12062.96046788,0.000199,2]
[359823566,1746359469609,-151.0,0.000199,2]
[359823567,1746359469618,-1806.5,0.00019916,2]
[359823568,1746359469627,-250.37,0.00019917,2]
[359823569,1746359469636,-450.0,0.00019917,2]
[359823570,1746359469645,-450.0,0.00019917,2]
[359823571,1746359469654,-450.0,0.00019917,2]
[359823572,1746359469663,-450.0,0.00019917,2]
[359823573,1746359469672,-450.0,0.00019917,2]
[359823574,1746359469681,-450.0,0.00019917,2]
[359823575,1746359469691,-884.01,0.00019917,2]
[359823576,1746359469700,-450.0,0.00019917,2]
[359823577,1746359469709,-450.0,0.00019917,2]
[359823578,1746359469718,-450.0,0.00019917,2]
[359823579,1746359469728,-450.0,0.00019917,2]
[359823580,1746359469737,-376.27026018,0.00019917,2]
[359823581,1746359469747,-450.0,0.00019917,2]
[359823582,1746359469756,-564.14,0.00019917,2]
[359823583,1746359469766,-224.22,0.00019917,2]
[359823584,1746359469775,-152.24,0.00019917,2]
[359823585,1746359469784,-450.0,0.00019917,2]
[359823586,1746359469794,-502.42,0.00019917,2]
[359823587,1746359469803,-450.0,0.00019917,2]
[359823588,1746359469812,-450.0,0.00019917,2]
[359823589,1746359469822,-485.4,0.00019917,2]
[359823590,1746359469831,-657.67,0.00019917,2]
[359823591,1746359469840,-587.24,0.00019917,2]
[359823592,1746359469850,-542.57,0.00019917,2]
[359823593,1746359469859,-151.0,0.00019917,2]
[359823594,1746359469869,-450.0,0.00019917,2]
[359823595,1746359469879,-450.0,0.00019917,2]
[359823596,1746359469888,-450.0,0.00019917,2]
[359823597,1746359469898,-286.2,0.00019917,2]
[359823598,1746359469907,-151.0,0.00019917,2]
[359823599,1746359469916,-151.0,0.00019917,2]
[359823600,1746359469925,-300.88,0.00019917,2]
[359823601,1746359469935,-450.0,0.00019917,2]
[359823602,1746359469944,-450.0,0.00019917,2]
[359823603,1746359469953,-151.0,0.00019917,2]
[359823604,1746359469964,-450.0,0.00019917,2]
[359823605,1746359469974,-151.0,0.00019917,2]
[359823606,1746359469984,-450.0,0.00019917,2]
[359823607,1746359469993,-494.67,0.00019917,2]
[359823608,1746359470003,-319.23,0.00019917,2]
[359823609,1746359470013,-1239.1,0.00019917,2]
[359823610,1746359470023,-624.17,0.00019917,2]
[359823611,1746359470032,-795.62,0.00019917,2]
[359823612,1746359470041,-1221.77,0.00019917,2]
[359823613,1746359470051,-324.036252,0.00019917,2]
[359823614,1746359470060,-324.036252,0.00019917,2]
[359823615,1746359470068,-450.0,0.00019917,2]
[359823616,1746359470078,-151.0,0.00019917,2]
[359823617,1746359470087,-450.0,0.00019917,2]
[359823618,1746359470096,-151.0,0.00019917,2]
[359823619,1746359470105,-151.0,0.00019917,2]
[359823620,1746359470114,-153.942009,0.00019917,2]
[359823621,1746359470123,-3138.38,0.00019917,2]
[359823622,1746359470132,-450.0,0.00019917,2]
[359823623,1746359470142,-450.0,0.00019917,2]
[359823624,1746359470151,-1070.11,0.00019917,2]
[359823625,1746359470160,-450.0,0.00019917,2]
[359823626,1746359470169,-292.96,0.00019917,2]
[359823627,1746359470179,-1073.06,0.00019917,2]
[359823628,1746359470188,-450.0,0.00019917,2]
[359823629,1746359470196,-450.0,0.00019917,2]
[359823630,1746359470206,-450.0,0.00019917,2]
[359823631,1746359470215,-857.72,0.00019917,2]
[359823632,1746359470223,-450.0,0.00019917,2]
[359823633,1746359470232,-450.0,0.00019917,2]
[359823634,1746359470241,-2941.44,0.00019917,2]
[359823635,1746359470252,-1162.75,0.00019917,2]
[359823636,1746359470262,-450.0,0.00019917,2]
[359823637,1746359470271,-562.76,0.00019917,2]
[359823638,1746359470279,-1159.98,0.00019917,2]
[359823639,1746359470288,-189.02,0.00019917,2]
[359823640,1746359470297,-450.0,0.00019917,2]
[359823641,1746359470306,-450.0,0.00019917,2]
[359823642,1746359470316,-487.27,0.00019917,2]
[359823643,1746359470325,-450.0,0.00019917,2]
[359823644,1746359470335,-460.74,0.00019917,2]
[359823645,1746359470344,-765.13,0.00019917,2]
[359823646,1746359470353,-533.18,0.00019917,2]
[359823647,1746359470362,-411.06,0.00019917,2]
[359823648,1746359470375,-450.0,0.00019917,2]
[359823649,1746359470384,-450.0,0.00019917,2]
[359823650,1746359470394,-3050.62,0.00019917,2]
[359823651,1746359470403,-450.0,0.00019917,2]
[359823652,1746359470415,-597.82,0.00019917,2]
[359823653,1746359470425,-683.7,0.00019917,2]
[359823654,1746359470434,-450.0,0.00019917,2]
[359823655,1746359470444,-450.0,0.00019917,2]
[359823656,1746359470456,-603.46,0.00019917,2]
[359823657,1746359470465,-2117.72,0.00019917,2]
[359823658,1746359470474,-592.77,0.00019917,2]
[359823659,1746359470484,-450.0,0.00019917,2]
[359823660,1746359470494,-625.72,0.00019917,2]
[359823661,1746359470505,-1742.76,0.00019917,2]
[359823662,1746359470514,-3548.84,0.00019917,2]
[359823663,1746359470525,-450.0,0.00019917,2]
[359823664,1746359470535,-450.0,0.00019917,2]
[359823665,1746359470544,-573.03,0.00019917,2]
[359823666,1746359470555,-588.79,0.00019917,2]
[359823667,1746359470565,-450.0,0.00019917,2]
[359823668,1746359470574,-1790.88,0.00019917,2]
[359823669,1746359470583,-573.15,0.00019917,2]
[359823670,1746359470592,-155.952685,0.00019917,2]
[359823671,1746359470601,-151.0,0.00019917,2]
[359823672,1746359470610,-34498.85,0.00019917,2]
[359823673,1746359470619,-841.66,0.00019917,2]
[359823674,1746359470629,-450.0,0.00019917,2]
[359823675,1746359470637,-968.24,0.00019917,2]
[359823676,1746359470646,-280.23,0.00019917,2]
[359823677,1746359470655,-1855.43,0.00019917,2]
[359823678,1746359470665,-151.0,0.00019917,2]
[359823679,1746359470674,-462.5,0.00019917,2]
[359823680,1746359470683,-8386.62,0.00019917,2]
[359823681,1746359470693,-450.0,0.00019917,2]
[359823682,1746359470702,-700.48,0.00019917,2]
[359823683,1746359470712,-355.01,0.00019917,2]
[359823684,1746359470722,-5710.89,0.00019917,2]
[359823685,1746359470731,-450.0,0.00019917,2]
[359823686,1746359470740,-661.6,0.00019917,2]
[359823687,1746359470750,-2167.82,0.00019917,2]
[359823688,1746359470759,-327.44942935,0.00019917,2]
[359823689,1746359470769,-494.48,0.00019917,2]
[359823690,1746359470778,-52939.37,0.00019917,2]
[359823691,1746359470788,-151.0,0.00019917,2]
[359823692,1746359470797,-5063.17395274,0.00019926,2]
[359823693,1746359470807,-831.78,0.0001993,2]
[359823694,1746359470816,-500.0,0.0001993,2]
[359823695,1746359470825,-12062.96046788,0.00019941,2]
[359823696,1746359470834,-500.0,0.00019943,2]
[359823697,1746359470844,-500.0,0.00019943,2]
[359823698,1746359470853,-831.78,0.00019944,2]
[359823699,1746359470863,-500.0,0.00019944,2]
[359823700,1746359470876,-450.0,0.00019945,2]
[359823701,1746359470885,-450.0,0.00019945,2]
[359823702,1746359470895,-450.0,0.00019945,2]
[359823703,1746359470904,-450.0,0.00019945,2]
[359823704,1746359470913,-450.0,0.00019945,2]
[359823705,1746359470924,-450.0,0.00019945,2]
[359823706,1746359470934,-884.01,0.00019945,2]
[359823707,1746359470943,-207.98100405,0.00019945,2]
[359823708,1746359470952,-450.0,0.00019945,2]
[359823709,1746359470962,-293.21,0.00019945,2]
[359823710,1746359470971,-450.0,0.00019945,2]
[359823711,1746359470980,-450.0,0.00019945,2]
[359823712,1746359470990,-564.14,0.00019945,2]
[359823713,1746359470999,-450.0,0.00019945,2]
[359823714,1746359471009,-450.0,0.00019945,2]
[359823715,1746359471018,-299.16,0.00019945,2]
[359823716,1746359471026,-485.4,0.00019945,2]
[359823717,1746359471036,-657.67,0.00019945,2]
[359823718,1746359471046,-587.24,0.00019945,2]
[359823719,1746359471055,-542.57,0.00019945,2]
[359823720,1746359471064,-450.0,0.00019945,2]
[359823721,1746359471073,-450.0,0.00019945,2]
[359823722,1746359471083,-450.0,0.00019945,2]
[359823723,1746359471092,-450.0,0.00019945,2]
[359823724,1746359471101,-450.0,0.00019945,2]
[359823725,1746359471110,-450.0,0.00019945,2]
[359823726,1746359471120,-450.0,0.00019945,2]
[359823727,1746359471129,-1239.1,0.00019945,2]
[359823728,1746359471138,-624.17,0.00019945,2]
[359823729,1746359471147,-795.62,0.00019945,2]
[359823730,1746359471156,-1221.77,0.00019945,2]
[359823731,1746359471165,-450.0,0.00019945,2]
[359823732,1746359471174,-450.0,0.00019945,2]
[359823733,1746359471183,-3138.38,0.00019945,2]
[359823734,1746359471192,-450.0,0.00019945,2]
[359823735,1746359471201,-151.0,0.00019945,2]
[359823736,1746359471210,-151.0,0.00019945,2]
[359823737,1746359471219,-151.0,0.00019945,2]
[359823738,1746359471229,-450.0,0.00019945,2]
[359823739,1746359471238,-1070.11,0.00019945,2]
[359823740,1746359471247,-422.91,0.00019945,2]
[359823741,1746359471256,-151.0,0.00019945,2]
[359823742,1746359471266,-1073.06,0.00019945,2]
[359823743,1746359471275,-248.771419,0.00019945,2]
[359823744,1746359471285,-151.0,0.00019945,2]
[359823745,1746359471295,-248.771419,0.00019945,2]
[359823746,1746359471307,-450.0,0.00019945,2]
[359823747,1746359471316,-151.0,0.00019945,2]
[359823748,1746359471326,-450.0,0.00019945,2]
[359823749,1746359471336,-152.187598,0.00019945,2]
[359823750,1746359471346,-170.065085,0.00019945,2]
[359823751,1746359471356,-151.0,0.00019945,2]
[359823752,1746359471368,-151.0,0.00019945,2]
[359823753,1746359471378,-450.0,0.00019945,2]
[359823754,1746359471387,-170.065085,0.00019945,2]
[359823755,1746359471396,-857.72,0.00019945,2]
[359823756,1746359471405,-151.0,0.00019945,2]
[359823757,1746359471415,-450.0,0.00019945,2]
[359823758,1746359471424,-450.0,0.00019945,2]
[359823759,1746359471433,-151.0,0.00019945,2]
[359823760,1746359471443,-151.0,0.00019945,2]
[359823761,1746359471452,-159.027064,0.00019945,2]
[359823762,1746359471461,-151.0,0.00019945,2]
[359823763,1746359471470,-2941.44,0.00019945,2]
[359823764,1746359471479,-153.687788,0.00019945,2]
[359823765,1746359471488,-159.027064,0.00019945,2]
[359823766,1746359471498,-151.0,0.00019945,2]
[359823767,1746359471507,-1162.75,0.00019945,2]
[359823768,1746359471516,-153.687788,0.00019945,2]
[359823769,1746359471525,-152.398009,0.00019945,2]
[359823770,1746359471534,-450.0,0.00019945,2]
[359823771,1746359471543,-562.76,0.00019945,2]
[359823772,1746359471552,-151.0,0.00019945,2]
[359823773,1746359471561,-1159.98,0.00019945,2]
[359823774,1746359471570,-296.85328452,0.00019945,2]
[359823775,1746359471579,-348.61,0.00019945,2]
[359823776,1746359471588,-151.0,0.00019945,2]
[359823777,1746359471597,-450.0,0.00019945,2]
[359823778,1746359471607,-151.0,0.00019945,2]
[359823779,1746359471615,-765.13,0.00019945,2]
[359823780,1746359471625,-151.0,0.00019945,2]
[359823781,1746359471634,-533.18,0.00019945,2]
[359823782,1746359471643,-263.46,0.00019945,2]
[359823783,1746359471651,-151.0,0.00019945,2]
[359823784,1746359471660,-151.0,0.00019945,2]
[359823785,1746359471670,-450.0,0.00019945,2]
[359823786,1746359471678,-3050.62,0.00019945,2]
[359823787,1746359471687,-450.0,0.00019945,2]
[359823788,1746359471696,-151.0,0.00019945,2]
[359823789,1746359471705,-683.7,0.00019945,2]
[359823790,1746359471715,-274.28,0.00019945,2]
[359823791,1746359471723,-151.0,0.00019945,2]
[359823792,1746359471733,-450.0,0.00019945,2]
[359823793,1746359471742,-603.46,0.00019945,2]
[359823794,1746359471752,-151.0,0.00019945,2]
[359823795,1746359471762,-2117.72,0.00019945,2]
[359823796,1746359471771,-270.8,0.00019945,2]
[359823797,1746359471781,-625.72,0.00019945,2]
[359823798,1746359471790,-151.0,0.00019945,2]
[359823799,1746359471799,-1742.76,0.00019945,2]
[359823800,1746359471809,-3548.84,0.00019945,2]
[359823801,1746359471818,-450.0,0.00019945,2]
[359823802,1746359471828,-450.0,0.00019945,2]
[359823803,1746359471837,-151.0,0.00019945,2]
[359823804,1746359471846,-573.03,0.00019945,2]
[359823805,1746359471856,-151.0,0.00019945,2]
[359823806,1746359471865,-322.854706,0.00019945,2]
[359823807,1746359471875,-588.79,0.00019945,2]
[359823808,1746359471885,-151.0,0.00019945,2]
[359823809,1746359471894,-450.0,0.00019945,2]
[359823810,1746359471905,-322.854706,0.00019945,2]
[359823811,1746359471914,-1790.88,0.00019945,2]
[359823812,1746359471924,-573.15,0.00019945,2]